fUSD/lending_fUSD_20240805
["ID","MTS","AMOUNT","RATE_DAILY","PERIOD"]
[334210249,1722840645858,-500.0,0.00020347,2]
[334210250,1722840645870,-500.0,0.0002037,2]
[334210251,1722840645879,-1400.0,0.000204,2]
[334210252,1722840645893,-500.0,0.00020415,2]
[334210253,1722840645903,-342.03,0.00020447,2]
[334210254,1722840645913,-164.66,0.00020447,2]
[334210255,1722840645923,-1400.0,0.0002045,2]
[334210256,1722840645932,-500.0,0.00020455,2]
[334210257,1722840645941,-500.0,0.00020457,2]
[334210258,1722840645951,-500.0,0.00020481,2]
[334210259,1722840645960,-500.0,0.00020486,2]
[334210260,1722840645970,-11495.0,0.000205,5]
[334210261,1722840645979,-152.0,0.00020502,8]
[334210262,1722840645988,-199.2846,0.00020516,2]
[334210263,1722840645998,-601.8425,0.00020516,2]
[334210264,1722840646007,-800.0,0.00020517,2]
[334210265,1722840646017,-1400.0,0.00020522,2]
[334210266,1722840646027,-1400.0,0.00020576,2]
[334210267,1722840646036,-1405.19425176,0.00020588,2]
[334210268,1722840646046,-500.0,0.00020616,2]
[334210269,1722840646056,-500.0,0.00020616,2]
[334210270,1722840646066,-900.0,0.00020616,2]
[334210271,1722840646076,-1100.0,0.00020616,2]
[334210272,1722840646086,-150.0,0.00020743,2]
[334210273,1722840646095,-700.0,0.00020744,2]
[334210274,1722840646105,-500.0,0.00020763,2]
[334210275,1722840646115,-500.0,0.0002078,2]
[334210276,1722840646125,-765.61,0.00020798,2]
[334210277,1722840646139,-420.67,0.00020798,2]
[334210278,1722840646148,-1326.04,0.00020798,2]
[334210279,1722840646158,-441.0248059,0.00020803,2]
[334210280,1722840646167,-500.0,0.00020812,2]
[334210281,1722840646177,-700.0,0.00020816,2]
[334210282,1722840646187,-427.923745,0.00020822,2]
[334210283,1722840646197,-1763.06943657,0.0002083,2]
[334210284,1722840646207,-1763.06943657,0.0002083,2]
[334210285,1722840646217,-600.0,0.00020847,2]
[334210286,1722840646227,-500.0,0.00020881,2]
[334210287,1722840646238,-800.0,0.00020888,2]
[334210288,1722840646249,-719.52629142,0.00020899,2]
[334210289,1722840646259,-722.96983282,0.00020899,2]
[334210290,1722840646270,-298.46340319,0.00020899,2]
[334210291,1722840646280,-3977.2935375,0.00020899,2]
[334210292,1722840646290,-2839.42461148,0.00020899,2]
[334210293,1722840646300,-1497.71,0.000209,2]
[334210295,1722840646311,-150.88,0.00020904,2]
[334210297,1722840646321,-150.0,0.00020904,2]
[334210298,1722840646330,-150.0,0.00020904,2]
[334210299,1722840646340,-150.0,0.00020904,2]
[334210300,1722840646350,-150.0,0.00020904,2]
[334210301,1722840646359,-150.0,0.00020904,2]
[334210302,1722840646369,-150.0,0.00020904,2]
[334210303,1722840646380,-150.0,0.00020904,2]
[334210305,1722840646390,-3000.0,0.0002092,2]
[334210307,1722840646399,-420.67,0.00020932,2]
[334210309,1722840646409,-800.0,0.00020951,2]
[334210311,1722840646419,-167.65539512,0.00020985,2]
[334210312,1722840646429,-1209.41361436,0.00020988,2]
[334210313,1722840646438,-500.0,0.00020995,2]
[334210314,1722840646448,-4103.47898308,0.00020999,2]
[334210315,1722840646458,-155.0,0.00020999,2]
[334210316,1722840646467,-155.14549793,0.00020999,2]
[334210317,1722840646477,-155.0,0.00020999,2]
[334210318,1722840646486,-535.65042242,0.00020999,2]
[334210319,1722840646496,-164.3003689,0.00020999,2]
[334210320,1722840646505,-265.28035561,0.00020999,2]
[334210321,1722840646515,-155.07714758,0.00020999,2]
[334210323,1722840646524,-437.24475045,0.00020999,2]
[334210324,1722840646534,-225.59278676,0.00021,2]
[334210325,1722840646543,-3268.0,0.00021,2]
[334210326,1722840646552,-2619.6975018,0.00021,2]
[334210327,1722840646561,-231.23,0.00021,2]
[334210328,1722840646571,-800.0,0.00021,2]
[334210329,1722840646581,-500.0,0.00021125,2]
[334210330,1722840646591,-700.0,0.00021149,2]
[334210331,1722840646600,-500.0,0.00021149,2]
[334210333,1722840646609,-500.0,0.00021156,2]
[334210334,1722840646619,-500.0,0.00021164,2]
[334210335,1722840646630,-900.0,0.00021164,2]
[334210336,1722840646639,-1100.0,0.00021164,2]
[334210337,1722840646649,-152.0,0.00021166,9]
[334210338,1722840646659,-800.0,0.00021176,2]
[334210339,1722840646669,-500.0,0.00021176,2]
[334210340,1722840646679,-150.0,0.000212,2]
[334210341,1722840646688,-800.0,0.00021319,2]
[334210342,1722840646697,-500.0,0.00021325,2]
[334210343,1722840646707,-1400.0,0.00021336,2]
[334210347,1722840646716,-700.0,0.0002134,2]
[334210349,1722840646726,-473.23480946,0.0002135,2]
[334210351,1722840646735,-413.57,0.0002137,2]
[334210353,1722840646745,-500.0,0.00021393,2]
[334210356,1722840646755,-201.0,0.0002142,2]
[334210357,1722840646764,-800.0,0.00021426,2]
[334210358,1722840646774,-293.58920177,0.00021442,2]
[334210359,1722840646784,-700.0,0.00021444,2]
[334210360,1722840646794,-500.0,0.00021489,2]
[334210361,1722840646803,-1400.0,0.00021489,2]
[334210362,1722840646813,-700.0,0.00021494,2]
[334210363,1722840646823,-154.53334117,0.00021495,2]
[334210364,1722840646832,-500.0,0.00021511,2]
[334210365,1722840646842,-500.0,0.00021536,2]
[334210366,1722840646852,-500.0,0.00021539,2]
[334210367,1722840646862,-5636.0,0.00021551,2]
[334210368,1722840646872,-500.0,0.00021595,2]
[334210369,1722840646883,-427.923745,0.00021644,2]
[334210370,1722840646893,-500.0,0.00021658,2]
[334210371,1722840646903,-500.0,0.00021669,2]
[334210372,1722840646913,-242372.0,0.00021685,2]
[334210373,1722840646923,-500.0,0.00021686,2]
[334210375,1722840646932,-929.82783598,0.00021699,2]
[334210377,1722840646942,-500.0,0.00021712,2]
[334210378,1722840646953,-500.0,0.00021712,2]
[334210379,1722840646963,-900.0,0.00021712,2]
[334210380,1722840646973,-1100.0,0.00021712,2]
[334210381,1722840646982,-500.0,0.00021722,2]
[334210382,1722840646992,-500.0,0.00021794,2]
[334210383,1722840647003,-1497.71,0.000218,2]
[334210384,1722840647013,-152.0,0.00021829,10]
[334210385,1722840647023,-420.52,0.00021863,2]
[334210386,1722840647034,-1669.32,0.00021863,2]
[334210397,1722840647298,-834.66,0.00021863,2]
[334210399,1722840647310,-834.66,0.00021863,2]
[334210400,1722840647320,-228.364665,0.00021863,2]
[334210401,1722840647331,-151.0,0.00021863,2]
[334210402,1722840647341,-151.0,0.00021863,2]
[334210403,1722840647351,-151.0,0.00021863,2]
[334210404,1722840647362,-151.0,0.00021863,2]
[334210405,1722840647372,-151.0,0.00021863,2]
[334210406,1722840647383,-151.0,0.00021863,2]
[334210407,1722840647393,-151.0,0.00021863,2]
[334210408,1722840647405,-151.0,0.00021863,2]
[334210409,1722840647415,-151.0,0.00021863,2]
[334210410,1722840647427,-151.0,0.00021863,2]
[334210411,1722840647438,-151.0,0.00021863,2]
[334210412,1722840647449,-151.408244,0.00021863,2]
[334210413,1722840647459,-151.0,0.00021863,2]
[334210414,1722840647470,-151.0,0.00021863,2]
[334210415,1722840647480,-167.252188,0.00021863,2]
[334210416,1722840647489,-576.401844,0.00021863,2]
[334210417,1722840647499,-167.252188,0.00021863,2]
[334210418,1722840647510,-576.401844,0.00021863,2]
[334210419,1722840647520,-151.0,0.00021863,2]
[334210420,1722840647531,-292.826058,0.00021863,2]
[334210421,1722840647542,-348.232992,0.00021863,2]
[334210422,1722840647552,-348.232992,0.00021863,2]
[334210423,1722840647563,-1400.0,0.00021869,2]
[334210424,1722840647573,-50000.0,0.0002187,4]
[334210425,1722840647583,-151.0,0.0002187,2]
[334210426,1722840647593,-436.667485,0.0002187,2]
[334210427,1722840647604,-436.667485,0.0002187,2]
[334210428,1722840647613,-372.204092,0.0002187,2]
[334210429,1722840647624,-151.0,0.0002187,2]
[334210430,1722840647633,-372.204092,0.0002187,2]
[334210431,1722840647644,-294.894093,0.0002187,2]
[334210432,1722840647654,-294.894093,0.0002187,2]
[334210433,1722840647665,-151.0,0.0002187,2]
[334210434,1722840647675,-151.0,0.0002187,2]
[334210435,1722840647685,-237.942423,0.0002187,2]
[334210436,1722840647695,-151.0,0.0002187,2]
[334210437,1722840647704,-237.942423,0.0002187,2]
[334210438,1722840647714,-500.0,0.00021874,2]
[334210439,1722840647724,-1457.5,0.00021878,2]
[334210440,1722840647734,-319171.18083193,0.0002188,2]
[334210441,1722840647744,-94541.24023847,0.0002188,2]
[334210442,1722840647755,-151.0,0.0002188,2]
[334210443,1722840647765,-151.0,0.0002188,2]
[334210444,1722840647775,-151.0,0.0002188,2]
[334210445,1722840647785,-151.0,0.0002188,2]
[334210446,1722840647795,-151.0,0.0002188,2]
[334210447,1722840647804,-151.0,0.0002188,2]
[334210448,1722840647815,-280.824968,0.0002188,2]
[334210449,1722840647824,-280.824968,0.0002188,2]
[334210450,1722840647834,-219.170389,0.0002188,2]
[334210451,1722840647844,-219.170389,0.0002188,2]
[334210452,1722840647854,-151.0,0.0002188,2]
[334210453,1722840647863,-151.0,0.0002188,2]
[334210454,1722840647873,-151.0,0.0002188,2]
[334210455,1722840647883,-151.0,0.0002188,2]
[334210456,1722840647893,-151.0,0.0002188,2]
[334210457,1722840647903,-205.52,0.0002188,2]
[334210458,1722840647913,-205.52,0.0002188,2]
[334210459,1722840647923,-151.17,0.0002189,2]
[334210460,1722840647932,-2200.0,0.000219,7]
[334210461,1722840647942,-288.0,0.000219,2]
[334210462,1722840647952,-684.0,0.000219,2]
[334210463,1722840647961,-2000.0,0.000219,2]
[334210464,1722840647971,-150.0,0.00021903,2]
[334210465,1722840647981,-834.66,0.00021907,2]
[334210466,1722840647991,-500.0,0.00021909,2]
[334210467,1722840648000,-2000.0,0.00021917,2]
[334210468,1722840648010,-669.48,0.00021918,2]
[334210469,1722840648020,-1696.9,0.00021918,2]
[334210470,1722840648030,-150.0,0.00021918,2]
[334210471,1722840648040,-150.0,0.00021918,2]
[334210472,1722840648050,-150.0,0.00021918,2]
[334210473,1722840648060,-700.0,0.00021934,2]
[334210474,1722840648069,-150.0,0.00021956,2]
[334210475,1722840648079,-1400.0,0.00021989,2]
[334210476,1722840648089,-411.36643823,0.00022,2]
[334210477,1722840648099,-241.91428589,0.00022,2]
[334210478,1722840648109,-61522.20406756,0.00022,14]
[334210479,1722840648119,-1068.53280353,0.00022,2]
[334210480,1722840648129,-1419.43500241,0.00022,7]
[334210481,1722840648140,-371.84314504,0.00022,2]
[334210482,1722840648150,-1000.0,0.00022,7]
[334210483,1722840648160,-795.63774394,0.00022,2]
[334210484,1722840648170,-17246.5029123,0.00022,2]
[334210485,1722840648180,-700.0,0.0002203,2]
[334210486,1722840648190,-242.33744148,0.00022075,2]
[334210487,1722840648202,-500.0,0.00022098,2]
[334210488,1722840648212,-226.88809872,0.0002211,2]
[334210489,1722840648221,-700.0,0.00022152,2]
[334210490,1722840648231,-1582.0,0.0002217,2]
[334210491,1722840648241,-622.0,0.0002217,2]
[334210492,1722840648251,-1925.0,0.0002217,2]
[334210493,1722840648260,-1256.0,0.0002217,2]
[334210494,1722840648270,-451.0,0.0002217,2]
[334210495,1722840648279,-446.0,0.0002217,2]
[334210496,1722840648290,-810.0,0.0002217,2]
[334210497,1722840648300,-1552.0,0.0002217,2]
[334210498,1722840648311,-150.0,0.0002217,2]
[334210499,1722840648320,-550.0,0.0002217,2]
[334210500,1722840648330,-1747.0,0.0002217,2]
[334210501,1722840648341,-150.0,0.0002217,2]
[334210502,1722840648352,-3288.0,0.0002217,2]
[334210503,1722840648363,-150.0,0.0002217,2]
[334210504,1722840648373,-3000.0,0.0002217,2]
[334210505,1722840648384,-5837.0,0.0002217,2]
[334210506,1722840648395,-5128.0,0.0002217,2]
[334210507,1722840648406,-1671.0,0.0002217,2]
[334210508,1722840648417,-1203.0,0.0002217,2]
[334210509,1722840648427,-799.09,0.00022183,2]
[334210510,1722840648438,-700.0,0.00022209,2]
[334210511,1722840648449,-500.0,0.00022228,2]
[334210512,1722840648460,-500.0,0.0002226,2]
[334210513,1722840648470,-900.0,0.0002226,2]
[334210514,1722840648480,-1100.0,0.0002226,2]
[334210515,1722840648490,-1659.84,0.000223,14]
[334210516,1722840648500,-1400.0,0.00022318,2]
[334210517,1722840648510,-800.0,0.00022338,2]
[334210518,1722840648520,-506.511038,0.00022369,2]
[334210519,1722840648529,-746.506649,0.00022369,2]
[334210520,1722840648539,-180.205611,0.00022369,2]
[334210521,1722840648550,-929.902716,0.00022369,2]
[334210522,1722840648560,-700.0,0.00022394,2]
[334210523,1722840648570,-500.0,0.00022411,2]
[334210524,1722840648580,-500.0,0.00022434,2]
[334210525,1722840648591,-204.979457,0.00022438,2]
[334210526,1722840648601,-444.703227,0.00022438,2]
[334210527,1722840648611,-615.929156,0.00022438,2]
[334210528,1722840648621,-176.068468,0.00022438,2]
[334210529,1722840648631,-700.0,0.00022461,2]
[334210530,1722840648641,-427.923745,0.00022466,2]
[334210531,1722840648651,-152.0,0.00022493,11]
[334210532,1722840648661,-150.0,0.00022495,2]
[334210533,1722840648671,-1647.0,0.000225,2]
[334210534,1722840648681,-8964.25640803,0.00022516,2]
[334210535,1722840648691,-150.0,0.00022579,2]
[334210536,1722840648700,-150.0,0.00022579,2]
[334210537,1722840648710,-414.9,0.00022579,2]
[334210538,1722840648720,-500.0,0.00022591,2]
[334210539,1722840648729,-301.66,0.0002262,2]
[334210540,1722840648739,-1400.0,0.00022628,2]
[334210541,1722840648749,-500.0,0.0002264,2]
[334210542,1722840648758,-506.511038,0.00022649,2]
[334210543,1722840648768,-746.506649,0.00022649,2]
[334210544,1722840648778,-929.902716,0.00022649,2]
[334210545,1722840648788,-1497.71,0.000227,7]
[334210546,1722840648797,-444.703227,0.00022718,2]
[334210547,1722840648807,-615.929156,0.00022718,2]
[334210548,1722840648816,-500.0,0.00022761,2]
[334210549,1722840648826,-500.0,0.00022767,2]
[334210550,1722840648836,-500.0,0.00022774,2]
[334210551,1722840648846,-300.0,0.00022778,2]
[334210552,1722840648856,-342.06,0.00022778,2]
[334210553,1722840648866,-530.56,0.00022778,2]
[334210554,1722840648876,-530.56,0.00022778,2]
[334210555,1722840648886,-712.32,0.00022778,2]
[334210556,1722840648896,-711.93,0.00022778,2]
[334210557,1722840648906,-356.25,0.00022778,2]
[334210558,1722840648917,-150.0,0.00022778,2]
[334210559,1722840648927,-354.7,0.00022778,2]
[334210560,1722840648937,-151.0,0.00022787,7]
[334210561,1722840648947,-151.0,0.00022787,7]
[334210562,1722840648956,-151.0,0.00022787,7]
[334210563,1722840648966,-200.0,0.00022787,2]
[334210564,1722840648976,-151.0,0.00022787,7]
[334210565,1722840648986,-151.0,0.00022787,7]
[334210566,1722840648996,-200.0,0.00022787,2]
[334210567,1722840649006,-500.0,0.00022808,2]
[334210568,1722840649016,-500.0,0.00022808,2]
[334210569,1722840649027,-900.0,0.00022808,2]
[334210570,1722840649037,-1100.0,0.00022808,2]
[334210571,1722840649047,-800.0,0.00022813,2]
[334210572,1722840649058,-978.66258467,0.00022815,2]
[334210573,1722840649068,-500.0,0.00022818,2]
[334210574,1722840649079,-201.0,0.0002282,2]
[334210575,1722840649089,-800.0,0.00022889,2]
[334210576,1722840649099,-500.0,0.00022901,2]
[334210577,1722840649109,-180.205611,0.00022929,2]
[334210578,1722840649120,-506.511038,0.00022929,2]
[334210579,1722840649130,-746.506649,0.00022929,2]
[334210580,1722840649149,-929.902716,0.00022929,2]
[334210581,1722840649159,-500.0,0.00022935,2]
[334210582,1722840649169,-159.0,0.0002296,9]
[334210583,1722840649179,-1400.0,0.00022972,2]
[334210584,1722840649189,-1500.0,0.00022989,2]
[334210585,1722840649199,-20377.24899524,0.00022998,21]
[334210586,1722840649210,-444.703227,0.00022999,2]
[334210587,1722840649220,-615.929156,0.00022999,2]
[334210588,1722840649231,-2000.0,0.00023,5]
[334210589,1722840649242,-3606.49399699,0.00023,15]
[334210590,1722840649252,-850.0,0.00023,2]
[334210591,1722840649262,-202.61882071,0.00023,2]
[334210592,1722840649272,-173.0,0.00023,2]
[334210593,1722840649282,-500.0,0.0002301,2]
[334210594,1722840649292,-200.0,0.00023015,2]
[334210595,1722840649303,-200.0,0.00023015,2]
[334210596,1722840649315,-500.0,0.00023061,2]
[334210597,1722840649325,-150.0,0.00023071,2]
[334210598,1722840649336,-473.23480946,0.00023125,2]
[334210599,1722840649346,-500.0,0.00023126,2]
[334210600,1722840649357,-800.0,0.00023141,2]
[334210601,1722840649368,-152.0,0.00023157,12]
[334210602,1722840649379,-500.0,0.00023203,2]
[334210603,1722840649389,-180.0,0.00023205,2]
[334210604,1722840649400,-506.511038,0.00023208,2]
[334210605,1722840649410,-746.506649,0.00023208,2]
[334210606,1722840649421,-929.902716,0.00023208,2]
[334210607,1722840649431,-200.0,0.00023245,2]
[334210608,1722840649441,-200.0,0.00023245,2]
[334210609,1722840649453,-444.703227,0.00023279,2]
[334210610,1722840649464,-615.929156,0.00023279,2]
[334210611,1722840649474,-605.9987089,0.00023288,30]
[334210612,1722840649484,-427.923745,0.00023288,2]
[334210613,1722840649493,-700.0,0.00023296,2]
[334210614,1722840649503,-500.79757724,0.000233,2]
[334210615,1722840649513,-396.79725723,0.00023356,2]
[334210616,1722840649523,-1500.0,0.00023369,2]
[334210617,1722840649533,-605.9987089,0.00023397,30]
[334210618,1722840649543,-187.45,0.00023401,2]
[334210619,1722840649553,-150.0,0.00023401,2]
[334210620,1722840649563,-426.02,0.00023401,2]
[334210621,1722840649573,-850.51,0.00023401,2]
[334210622,1722840649583,-356.25,0.00023401,2]
[334210623,1722840649593,-426.02,0.00023401,2]
[334210624,1722840649603,-150.0,0.00023401,2]
[334210625,1722840649613,-426.02,0.00023401,2]
[334210626,1722840649623,-356.25,0.00023401,2]
[334210627,1722840649633,-150.0,0.00023401,2]
[334210628,1722840649643,-877.3,0.00023401,2]
[334210629,1722840649653,-150.0,0.00023401,2]
[334210630,1722840649770,-275.9,0.00023401,2]
[334210631,1722840649781,-530.56,0.00023401,2]
[334210632,1722840649792,-356.25,0.00023401,2]
[334210633,1722840649802,-150.0,0.00023401,2]
[334210634,1722840649812,-530.56,0.00023401,2]
[334210635,1722840649822,-150.0,0.00023401,2]
[334210636,1722840649832,-530.56,0.00023401,2]
[334210637,1722840649841,-150.0,0.00023401,2]
[334210638,1722840649851,-530.56,0.00023401,2]
[334210639,1722840649860,-356.25,0.00023401,2]
[334210640,1722840649870,-150.0,0.00023401,2]
[334210641,1722840649879,-356.25,0.00023401,2]
[334210642,1722840649889,-353.99,0.00023401,2]
[334210643,1722840649898,-150.0,0.00023401,2]
[334210644,1722840649908,-356.25,0.00023401,2]
[334210645,1722840649917,-356.25,0.00023401,2]
[334210646,1722840649927,-700.0,0.00023403,2]
[334210647,1722840649937,-3000.0,0.0002342,2]
[334210648,1722840649946,-152.58,0.00023442,2]
[334210649,1722840649955,-150.0,0.00023442,2]
[334210650,1722840649965,-150.0,0.00023442,2]
[334210651,1722840649975,-150.0,0.00023442,2]
[334210652,1722840649984,-150.0,0.00023442,2]
[334210653,1722840649994,-150.0,0.00023442,2]
[334210654,1722840650004,-300.0,0.00023442,2]
[334210655,1722840650014,-150.0,0.00023442,2]
[334210656,1722840650024,-1060.6,0.00023442,2]
[334210657,1722840650034,-1060.93,0.00023442,2]
[334210658,1722840650043,-151.83,0.00023442,2]
[334210659,1722840650053,-300.0,0.00023442,2]
[334210660,1722840650063,-530.56,0.00023442,2]
[334210661,1722840650073,-356.25,0.00023442,2]
[334210662,1722840650082,-711.94,0.00023442,2]
[334210663,1722840650092,-531.93797373,0.00023451,2]
[334210664,1722840650102,-294.83088482,0.00023451,2]
[334210665,1722840650111,-155.0,0.00023451,2]
[334210666,1722840650121,-159.50818121,0.00023451,2]
[334210667,1722840650131,-1138.37465577,0.00023451,2]
[334210668,1722840650141,-625.8586866,0.00023451,2]
[334210669,1722840650152,-155.0,0.00023451,2]
[334210670,1722840650162,-158.12449699,0.00023451,2]
[334210671,1722840650171,-236.19407815,0.00023451,2]
[334210672,1722840650181,-2209.36735237,0.00023451,2]
[334210673,1722840650190,-200.0,0.00023477,2]
[334210674,1722840650201,-200.0,0.00023477,2]
[334210675,1722840650210,-605.9987089,0.00023479,30]
[334210676,1722840650220,-800.0,0.00023487,2]
[334210677,1722840650230,-180.205611,0.00023488,2]
[334210678,1722840650240,-506.511038,0.00023488,2]
[334210679,1722840650250,-746.506649,0.00023488,2]
[334210680,1722840650259,-929.902716,0.00023488,2]
[334210681,1722840650268,-300.53,0.00023507,2]
[334210682,1722840650278,-1930.8034395,0.00023555,2]
[334210683,1722840650288,-444.703227,0.00023559,2]
[334210684,1722840650298,-615.929156,0.00023559,2]
[334210685,1722840650308,-176.068468,0.00023559,2]
[334210686,1722840650318,-500.7,0.00023581,2]
[334210687,1722840650328,-605.9987089,0.00023589,30]
[334210688,1722840650338,-300.0,0.000236,2]
[334210689,1722840650348,-150.0,0.000236,2]
[334210690,1722840650358,-1060.56,0.000236,2]
[334210691,1722840650367,-500.0,0.00023638,2]
[334210692,1722840650377,-150.0,0.00023648,2]
[334210693,1722840650387,-605.9987089,0.00023671,30]
[334210694,1722840650397,-1400.0,0.00023675,2]
[334210695,1722840650407,-700.0,0.00023689,2]
[334210696,1722840650417,-500.0,0.00023696,2]
[334210697,1722840650426,-1400.0,0.00023708,2]
[334210698,1722840650436,-200.0,0.00023712,2]
[334210699,1722840650446,-200.0,0.00023712,2]
[334210700,1722840650457,-800.0,0.00023774,2]
[334210701,1722840650467,-605.9987089,0.00023781,30]
[334210702,1722840650477,-7000.0,0.000238,3]
[334210703,1722840650487,-200.044416,0.000238,7]
[334210704,1722840650497,-200.044416,0.000238,7]
[334210705,1722840650506,-201.710306,0.000238,7]
[334210706,1722840650516,-201.710306,0.000238,7]
[334210707,1722840650525,-151.0,0.000238,7]
[334210708,1722840650535,-151.0,0.000238,7]
[334210709,1722840650544,-151.0,0.000238,7]
[334210710,1722840650553,-1682.384281,0.000238,7]
[334210711,1722840650563,-1682.384281,0.000238,7]
[334210712,1722840650572,-237.709947,0.000238,7]
[334210713,1722840650582,-151.0,0.000238,7]
[334210714,1722840650591,-153.81849,0.000238,7]
[334210715,1722840650601,-796.866462,0.000238,7]
[334210716,1722840650611,-796.866462,0.000238,7]
[334210717,1722840650620,-1400.0,0.00023808,2]
[334210718,1722840650630,-700.0,0.00023813,2]
[334210719,1722840650639,-152.0,0.00023821,13]
[334210720,1722840650649,-263.5,0.0002387,30]
[334210721,1722840650658,-2209.36735237,0.00023873,2]
[334210722,1722840650667,-205.81331723,0.00023873,2]
[334210723,1722840650676,-3080.259936,0.00023873,2]
[334210724,1722840650686,-155.0,0.00023873,2]
[334210725,1722840650696,-1112.66439902,0.00023873,2]
[334210726,1722840650705,-4474.21822567,0.00023873,2]
[334210727,1722840650715,-197.00575452,0.00023873,2]
[334210728,1722840650725,-155.09867252,0.00023873,2]
[334210729,1722840650734,-363.95283854,0.00023873,2]
[334210730,1722840650743,-1297.45235074,0.00023873,2]
[334210731,1722840650753,-359.17322688,0.00023873,2]
[334210732,1722840650762,-150.5,0.0002388,30]
[334210733,1722840650772,-150.5,0.0002389,30]
[334210734,1722840650781,-605.9987089,0.0002389,30]
[334210735,1722840650791,-400.0,0.000239,8]
[334210736,1722840650800,-500.0,0.00023904,2]
[334210737,1722840650809,-500.0,0.00023904,2]
[334210738,1722840650818,-900.0,0.00023904,2]
[334210739,1722840650827,-1100.0,0.00023904,2]
[334210740,1722840650836,-1500.0,0.00023952,2]
[334210741,1722840650846,-1598.49,0.00023962,7]
[334210742,1722840650855,-1598.49,0.00023962,7]
[334210743,1722840650865,-1598.49,0.00023962,7]
[334210744,1722840650874,-1598.49,0.00023962,7]
[334210745,1722840650884,-605.9987089,0.00023973,30]
[334210746,1722840650893,-700.0,0.00023975,2]
[334210747,1722840650903,-170.58669655,0.00023997,2]
[334210748,1722840650912,-500.12345678,0.00024,4]
[334210749,1722840650921,-496.85009031,0.00024,5]
[334210750,1722840650930,-297.17740872,0.00024,2]
[334210751,1722840650938,-963.21732956,0.00024,2]
[334210752,1722840650947,-685.27380846,0.00024,2]
[334210753,1722840650956,-10945.17867981,0.00024,2]
[334210754,1722840650965,-750000.0,0.00024,2]
[334210755,1722840650974,-179.638467,0.00024,7]
[334210756,1722840650984,-179.638467,0.00024,7]
[334210757,1722840650994,-151.0,0.00024,7]
[334210758,1722840651004,-1306.157499,0.00024,7]
[334210759,1722840651013,-151.0,0.00024,7]
[334210760,1722840651023,-260.49888,0.00024,7]
[334210761,1722840651032,-208.690989,0.00024,7]
[334210762,1722840651042,-1306.157499,0.00024,7]
[334210763,1722840651052,-208.690989,0.00024,7]
[334210764,1722840651061,-151.0,0.00024,7]
[334210765,1722840651070,-239.363563,0.00024,7]
[334210766,1722840651080,-239.363563,0.00024,7]
[334210767,1722840651089,-151.0,0.00024,7]
[334210768,1722840651098,-269.874029,0.00024,7]
[334210769,1722840651108,-151.0,0.00024,7]
[334210770,1722840651117,-151.0,0.00024,7]
[334210771,1722840651127,-151.0,0.00024,7]
[334210772,1722840651137,-151.0,0.00024,7]
[334210773,1722840651147,-188.667573,0.00024,7]
[334210774,1722840651168,-188.667573,0.00024,7]
[334210775,1722840651179,-432.482665,0.00024,7]
[334210776,1722840651188,-1412.659878,0.00024,7]
[334210777,1722840651199,-10000.0,0.00024,7]